bitfinex/quotes_SOLUSD_20241222
["timestamp","ask_amount","ask_price","bid_price","bid_amount"]
[1734878263762,13.95359,180.79,180.59,8.48606053]
[1734878263928,1.03768,180.78,180.59,8.48606053]
[1734878264556,6.4283,180.77,180.6,13.8427]
[1734878264760,1.03766291,180.76,180.6,13.8427]
[1734878265435,1.03766291,180.76,180.57,0.12549]
[1734878265623,1.03766291,180.76,180.57,13.845]
[1734878265624,0.12549,180.75,180.57,13.845]
[1734878265822,6.4283,180.73,180.57,13.845]
[1734878266034,1.0378997,180.72,180.55,0.6642269]
[1734878266233,0.12549,180.71,180.55,0.6642269]
[1734878266464,1.0378997,180.72,180.55,0.6642269]
[1734878266971,1.0378997,180.72,180.56,13.8458]
[1734878267137,6.4283,180.73,180.57,0.12549]
[1734878267547,1.03748565,180.72,180.59,20.0]
[1734878267745,6.4283,180.73,180.61,20.0]
[1734878267932,6.4283,180.73,180.62,23.776884]
[1734878269035,6.4283,180.73,180.63,13.8404]
[1734878269366,6.4283,180.73,180.64,23.776884]
[1734878270158,6.4283,180.73,180.67,20.0]
[1734878270331,6.4283,180.73,180.66,23.776884]
[1734878270710,6.4283,180.73,180.65,13.8389]
[1734878270967,6.4283,180.73,180.62,13.8411]
[1734878272138,1.03757233,180.72,180.59,23.776884]
[1734878272535,1.03757233,180.72,180.56,13.8458]
[1734878272852,1.03757233,180.72,180.57,30.0]
[1734878273544,14.87107233,180.72,180.57,30.0]
[1734878273874,14.87107233,180.72,180.57,342.0]
[1734878274371,1.03757233,180.72,180.61,20.0]
[1734878274590,6.4283,180.73,180.61,20.0]
[1734878274748,6.4283,180.73,180.62,23.776884]
[1734878275391,6.4283,180.73,180.65,20.0]
[1734878276256,6.4283,180.73,180.69,20.0]
[1734878276780,6.2661,180.82,180.69,20.0]
[1734878277076,6.2661,180.81,180.64,23.776884]
[1734878277277,6.2661,180.81,180.67,20.0]
[1734878277975,13.95289,180.8,180.64,312.0]
[1734878278219,13.95289,180.8,180.63,13.8402]
[1734878278677,13.95289,180.8,180.61,8.48606053]
[1734878278905,13.95289,180.8,180.64,20.0]
[1734878279462,13.95289,180.8,180.63,20.0]
[1734878280483,13.95289,180.8,180.6,22.32876053]
[1734878280695,0.12549,180.76,180.6,22.32876053]
[1734878280884,0.12549,180.76,180.6,8.48606053]
[1734878281248,0.12549,180.76,180.57,43.8448]
[1734878281586,0.12549,180.73,180.57,13.8448]
[1734878281759,20.0,180.74,180.57,13.8448]
[1734878281961,6.2661,180.77,180.58,0.12549]
[1734878282167,6.2661,180.77,180.58,30.12549]
[1734878282394,1.03743206,180.76,180.58,30.12549]
[1734878282566,6.2661,180.77,180.58,30.12549]
[1734878282769,6.2661,180.77,180.62,43.902374]
[1734878283494,1.03735081,180.76,180.62,43.776884]
[1734878283691,6.2661,180.77,180.64,23.776884]
[1734878283997,6.2661,180.77,180.68,23.776884]
[1734878284196,6.017,180.82,180.72,23.776884]
[1734878284399,6.017,180.82,180.72,335.776884]
[1734878284788,6.017,180.87,180.8,23.776884]
[1734878284959,6.017,180.87,180.83,20.0]
[1734878285362,1.03647808,180.98,180.83,20.0]
[1734878285567,6.017,180.97,180.87,20.0]
[1734878285867,1.03637235,181.06,180.8,3.5544]
[1734878285868,6.017,181.05,180.91,20.0]
[1734878286096,6.017,181.05,180.92,23.776884]
[1734878286297,6.017,181.05,180.88,13.8213]
[1734878286298,1.03576286,181.04,180.88,13.8213]
[1734878286592,1.03576286,181.04,180.83,13.8245]
[1734878286891,1.03576286,181.04,180.84,23.776884]
[1734878287072,0.12549,181.03,180.84,23.776884]
[1734878287391,0.12549,181.01,180.82,20.0]
[1734878287605,1.03638662,181.0,180.84,20.0]
[1734878287771,0.12549,180.99,180.84,20.0]
[1734878288091,1.03643394,180.98,180.84,20.0]
[1734878288397,1.03643394,180.98,180.82,20.0]
[1734878288903,1.03637964,180.97,180.81,20.0]
[1734878289200,1.03638763,180.99,180.82,23.776884]
[1734878289398,1.03638763,180.99,180.85,20.0]
[1734878289587,1.03618107,181.01,180.86,23.776884]
[1734878289961,1.0361647,181.04,180.89,20.0]
[1734878290197,1.0361647,181.04,180.9,23.776884]
[1734878290566,1.03578708,181.04,180.93,20.0]
[1734878291396,6.017,181.05,180.94,23.776884]
[1734878291588,6.017,181.05,180.97,20.0]
[1734878291966,7.901e-05,181.1,180.98,23.776884]
[1734878292461,7.901e-05,181.1,181.01,20.0]
[1734878292687,7.901e-05,181.1,181.02,23.776884]
[1734878293074,7.901e-05,181.1,181.06,20.0]
[1734878293678,7.901e-05,181.1,181.09,20.0]
[1734878294098,7.901e-05,181.1,181.09,43.776884]
[1734878294269,7.901e-05,181.1,181.09,43.902374]
[1734878294891,0.6642269,181.17,181.09,73.902374]
[1734878295113,0.6642269,181.17,181.14,20.0]
[1734878295400,6.017,181.16,180.96,2.38598121]
[1734878295601,1.03516908,181.15,180.85,4.47055396]
[1734878295770,1.03516908,181.15,180.86,6.31406575]
[1734878295977,6.017,181.16,180.9,0.12549]
[1734878296299,6.017,181.16,180.9,6.31406575]
[1734878296483,6.017,181.16,180.95,0.12549]
[1734878296685,6.017,181.16,180.97,0.12549]
[1734878297097,6.017,181.16,181.0,20.0]
[1734878297711,6.017,181.16,181.05,0.12549]
[1734878297917,6.017,181.16,181.08,20.0]
[1734878298815,6.017,181.16,181.09,23.776884]
[1734878299190,6.017,181.16,181.08,20.0]
[1734878299516,6.017,181.16,181.08,23.776884]
[1734878300030,6.017,181.16,181.02,13.8105]
[1734878300322,6.017,181.16,181.03,30.0]
[1734878300487,6.017,181.16,181.04,0.12549]
[1734878300992,0.6642269,181.17,181.04,0.12549]
[1734878301207,0.6642269,181.17,181.16,23.776884]
[1734878301600,0.6642269,181.17,181.16,23.902374]
[1734878301914,2.69e-05,181.17,181.16,23.776884]
[1734878302721,2.69e-05,181.17,181.04,30.0]
[1734878303027,2.69e-05,181.17,180.98,13.8135]
[1734878303313,2.69e-05,181.17,181.0,30.0]
[1734878303481,2.69e-05,181.17,180.98,13.8135]
[1734878303687,2.69e-05,181.17,180.96,3.5544]
[1734878303688,6.3177,181.16,180.96,3.5544]
[1734878304018,1.03546945,181.15,180.96,3.5544]
[1734878304310,6.3177,181.16,180.98,0.12549]
[1734878304490,6.3177,181.16,181.03,0.12549]
[1734878304688,6.3177,181.16,181.07,20.0]
[1734878305190,6.3177,181.16,181.08,20.0]
[1734878306115,6.3177,181.16,181.09,23.776884]
[1734878306310,6.3177,181.16,181.09,33.8046]
[1734878306492,6.3177,181.16,181.01,6.3177]
[1734878306692,6.3177,181.16,181.02,23.776884]
[1734878307094,6.3177,181.16,181.04,13.8083]
[1734878307294,2.69e-05,181.17,181.05,23.902374]
[1734878307790,2.69e-05,181.17,181.13,23.902374]
[1734878308125,2.69e-05,181.17,181.16,355.776884]
[1734878308788,2.69e-05,181.17,181.13,0.12549]
[1734878309099,2.69e-05,181.17,181.13,23.902374]
[1734878309912,2.69e-05,181.17,181.16,20.0]
[1734878310215,6.3177,181.29,181.21,0.12549]
[1734878311206,6.3177,181.29,181.2,0.12549]
[1734878311401,6.3177,181.29,181.19,20.0]
[1734878311592,6.3177,181.29,181.19,332.0]
[1734878311803,6.3177,181.29,181.19,312.0]
[1734878312221,6.3177,181.29,181.17,37.575984]
[1734878312395,6.3177,181.29,181.18,0.12549]
[1734878313034,6.3177,181.29,181.21,23.902374]
[1734878313191,6.3177,181.29,181.24,20.0]
[1734878313395,0.6642269,181.35,181.25,37.695374]
[1734878313935,0.6642269,181.35,181.28,20.0]
[1734878314234,0.6642269,181.35,181.33,23.902374]
[1734878314430,0.6642269,181.35,181.25,17.5763]
[1734878314431,0.6642269,181.35,181.28,20.0]
[1734878314612,0.6642269,181.35,181.29,20.0]
[1734878315005,0.6642269,181.35,181.28,20.0]
[1734878315325,0.6642269,181.35,181.29,312.0]
[1734878315710,0.6642269,181.35,181.29,20.0]
[1734878316119,6.3177,181.34,181.11,3.7833]
[1734878316423,4.61866243,181.33,181.13,30.0]
[1734878316947,0.12549,181.32,181.13,30.0]
[1734878317097,1.03471757,181.31,181.08,12.31339107]
[1734878317293,1.03471757,181.31,181.1,0.12549]
[1734878317499,1.03471757,181.31,181.09,43.8052]
[1734878317699,1.03471757,181.31,181.09,71.4157]
[1734878318199,1.03441769,181.3,181.1,0.12549]
[1734878318420,3.16360815,181.33,181.11,0.82752425]
[1734878318602,1.03418709,181.32,181.12,0.12549]
[1734878318808,1.03418709,181.32,181.15,23.902374]
[1734878319319,1.03418709,181.32,181.14,312.0]
[1734878319796,0.12549,181.29,181.08,26.11929107]
[1734878319996,0.12549,181.28,181.08,12.31339107]
[1734878320331,1.03418709,181.27,181.09,0.82788105]
[1734878320513,1.03418709,181.29,181.09,0.82788105]
[1734878320905,1.03418709,181.29,181.1,0.12549]
[1734878321122,1.03418709,181.29,181.12,0.12549]
[1734878321430,1.03418709,181.29,181.17,20.0]
[1734878321730,1.03418709,181.29,181.13,23.776884]
[1734878322937,1.03418709,181.29,181.14,312.0]
[1734878323418,14.82468709,181.29,181.08,26.11909107]
[1734878323605,14.82468709,181.29,181.09,0.82774726]
[1734878323805,14.82468709,181.29,181.1,0.12549]
[1734878324005,1.03418709,181.29,181.12,0.12549]
[1734878324238,1.03418709,181.29,181.14,0.12549]
[1734878324833,1.03418709,181.29,181.14,23.902374]
[1734878325033,1.03418709,181.29,181.14,37.703274]
[1734878325226,6.3177,181.3,181.14,37.703274]
[1734878325435,6.3177,181.3,181.16,0.12549]
[1734878325611,6.3177,181.3,181.17,0.8274497]
[1734878326136,1.03418709,181.29,181.13,20.0]
[1734878326331,1.03418709,181.29,181.15,23.776884]
[1734878326504,6.3177,181.3,181.17,312.0]
[1734878326920,6.3177,181.3,181.18,23.902374]
[1734878327136,6.3177,181.3,181.2,0.12549]
[1734878327333,6.3177,181.3,181.22,20.0]
[1734878327819,6.3177,181.3,181.18,20.0]
[1734878328518,1.03418709,181.29,181.18,20.0]
[1734878328827,6.3177,181.3,181.18,23.776884]
[1734878329341,6.3177,181.3,181.19,0.12549]
[1734878330055,6.3177,181.3,181.2,312.0]
[1734878330433,6.3177,181.3,181.21,24.72969739]
[1734878330772,7.2504269,181.35,181.28,20.0]
[1734878330929,7.2504269,181.35,181.28,20.82700586]
[1734878331454,0.6642269,181.35,181.32,20.0]
[1734878331656,0.6642269,181.35,181.33,0.82675775]
[1734878332462,0.6642269,181.35,181.32,20.82683372]
[1734878332647,0.6642269,181.35,181.33,13.787]
[1734878333019,0.6642269,181.35,181.34,24.72912811]
[1734878333543,0.6642269,181.35,181.34,336.60363811]
[1734878333748,0.6642269,181.35,181.34,335.902374]
[1734878334343,2.69e-05,181.35,181.34,335.902374]
[1734878335555,2.69e-05,181.35,181.12,33.73]
[1734878335736,2.69e-05,181.35,181.23,0.12549]
[1734878336067,2.69e-05,181.35,181.25,0.12549]
[1734878336359,2.69e-05,181.35,181.24,0.82711553]
[1734878336360,2.69e-05,181.35,181.27,13.91679]
[1734878336532,2.69e-05,181.35,181.28,0.82700266]
[1734878337128,2.69e-05,181.35,181.27,20.0]
[1734878337747,2.69e-05,181.35,181.28,0.12549]
[1734878337924,2.69e-05,181.35,181.3,0.12549]
[1734878338126,2.69e-05,181.35,181.31,0.82672265]
[1734878338351,2.69e-05,181.35,181.34,20.0]
[1734878338555,2.69e-05,181.35,181.31,20.0]
[1734878339936,2.69e-05,181.35,181.3,20.0]
[1734878340554,6.5862,181.34,181.2,0.82713299]
[1734878340872,1.03414119,181.33,181.19,27.5951]
[1734878341073,6.5862,181.34,181.17,4.37541301]
[1734878341372,6.5862,181.34,181.19,0.12549]
[1734878341531,6.5862,181.34,181.23,0.12549]
[1734878341731,6.5862,181.34,181.23,0.95272312]
[1734878341955,6.5862,181.34,181.25,0.12549]
[1734878342365,6.5862,181.34,181.27,20.0]
[1734878342827,6.5862,181.34,181.24,13.7938]
[1734878343458,6.5862,181.34,181.19,0.82707269]
[1734878343459,1.03406223,181.33,181.21,13.7959]
[1734878343671,1.03406223,181.33,181.15,0.8274065]
[1734878344165,0.12549,181.3,181.14,3.66712308]
[1734878344464,1.15967709,181.3,181.08,12.31339107]
[1734878344764,1.03418709,181.3,181.11,13.803]
[1734878345061,1.03418709,181.3,181.15,0.12549]
[1734878345266,1.03418709,181.3,181.15,0.95305921]
[1734878345962,1.03418709,181.3,181.16,23.776884]
[1734878346175,0.12549,181.29,181.13,13.8015]
[1734878346959,6.3919,181.26,181.1,13.8043]
[1734878347162,1.03418709,181.25,181.1,13.8043]
[1734878347467,6.3919,181.26,181.12,0.12549]
[1734878347651,6.3919,181.26,181.14,0.12549]
[1734878348339,6.3919,181.26,181.15,13.8007]
[1734878348651,6.3919,181.26,181.16,23.776884]
[1734878348847,6.3919,181.26,181.17,0.12549]
[1734878349038,6.3919,181.26,181.19,20.0]
[1734878349243,6.3919,181.26,181.23,20.0]
[1734878349852,6.3919,181.26,181.15,13.8007]
[1734878350051,1.03418709,181.25,181.12,13.8029]
[1734878350456,6.3919,181.26,181.13,0.12549]
[1734878351396,6.3919,181.26,181.16,23.902374]
[1734878351763,6.3919,181.26,181.19,20.0]
[1734878352093,6.3919,181.26,181.19,332.0]
[1734878352655,6.3919,181.26,181.13,13.8019]
[1734878352656,1.03418709,181.25,181.13,13.8019]
[1734878352879,1.03418709,181.25,181.16,20.0]
[1734878353095,6.3919,181.26,181.17,0.12549]
[1734878353707,6.3919,181.26,181.16,20.0]
[1734878354055,6.3919,181.26,181.17,23.776884]
[1734878354402,6.3919,181.26,181.21,20.0]
[1734878354994,6.3919,181.26,181.13,20.0]
[1734878355167,1.03418709,181.25,181.14,20.0]
[1734878355491,6.3919,181.26,181.18,20.0]
[1734878357476,1.03418709,181.25,181.18,20.0]
[1734878357676,1.03418709,181.25,181.12,13.8028]
[1734878357978,3.6548,181.24,181.13,0.95332573]
[1734878358311,6.3919,181.26,181.13,0.95332573]
[1734878359099,6.3919,181.26,181.2,312.0]
[1734878359611,6.3919,181.26,181.21,23.776884]
[1734878359793,6.3919,181.26,181.1,27.609]
[1734878359794,1.03418709,181.25,181.1,27.609]
[1734878359980,1.03418709,181.25,181.11,30.0]
[1734878360480,1.03418709,181.25,181.12,0.95323778]
[1734878360698,6.3919,181.26,181.12,0.95323778]
[1734878360901,1.03418709,181.25,181.12,0.95323778]
[1734878361084,6.3919,181.26,181.14,20.0]
[1734878361282,6.3919,181.26,181.15,23.776884]
[1734878361712,1.03418709,181.25,181.15,23.776884]
[1734878361920,1.03418709,181.25,181.14,33.801]
[1734878362290,0.12549,181.24,181.07,0.8277463]
[1734878362512,13.91929,181.24,181.09,30.0]
[1734878362707,1.03418709,181.23,181.09,312.0]
[1734878363018,1.03418709,181.23,181.1,0.12549]
[1734878363180,6.3919,181.26,181.1,0.12549]
[1734878363181,1.03418709,181.25,181.1,0.12549]
[1734878363803,1.03418709,181.25,181.1,23.902374]
[1734878363981,1.03418709,181.25,181.15,20.0]
[1734878365095,13.91929,181.24,181.03,13.8098]
[1734878365311,6.2514,181.22,181.06,30.0]
[1734878365517,6.2514,181.18,181.03,13.8098]
[1734878365827,1.03418709,181.17,181.03,13.8098]
[1734878366190,1.03418709,181.17,181.04,312.0]
[1734878366419,1.03418709,181.17,181.0,47.75614213]
[1734878366617,1.03418709,181.17,181.01,30.0]
[1734878366920,6.2514,181.15,181.0,47.75614213]
[1734878367215,1.03418709,181.14,181.01,3.79275304]
[1734878367616,13.92769,181.13,181.01,3.79275304]
[1734878367914,3.76209,181.11,180.98,33.94424213]
[1734878368102,1.03418709,181.1,180.98,33.94424213]
[1734878368292,6.2514,181.09,180.98,33.94424213]
[1734878368491,1.03418709,181.08,180.98,33.94424213]
[1734878368806,0.12549,181.07,180.98,33.94424213]
[1734878369017,0.12549,181.07,180.9,0.6642]
[1734878369018,6.2514,181.05,180.9,0.6642]
[1734878369187,6.2514,181.02,180.9,0.6642]
[1734878369386,3.6366,181.0,180.9,0.6642]
[1734878369591,1.03418709,180.99,180.9,0.6642]
[1734878370309,6.2514,180.97,180.9,0.6642]
[1734878370619,1.03418709,180.96,180.9,0.6642]
[1734878371221,1.03418709,180.96,180.78,13.8288]
[1734878371405,0.12549,180.95,180.78,13.8288]
[1734878371721,1.03418709,180.94,180.81,20.0]
[1734878371902,6.2514,180.92,180.74,13.8316]
[1734878372101,1.03418709,180.91,180.74,13.8316]
[1734878372306,2.9724,180.9,180.74,13.8316]
[1734878372501,1.03418709,180.89,180.74,312.0]
[1734878372923,6.2514,180.87,180.72,0.6642269]
[1734878373119,1.03418709,180.86,180.72,0.6642269]
[1734878373422,1.03418709,180.86,180.73,14.66238339]
[1734878373616,6.2514,180.87,180.74,0.12549]
[1734878373810,6.2514,180.87,180.76,0.12549]
[1734878374120,6.2514,180.87,180.78,0.12549]
[1734878374423,6.2514,180.95,180.79,0.82918863]
[1734878374731,6.2514,180.95,180.84,0.12549]
[1734878374929,6.2514,180.95,180.84,23.902374]
[1734878375142,6.2514,180.95,180.87,20.0]
[1734878375848,6.2514,180.95,180.87,332.0]
[1734878376224,6.2514,180.95,180.8,3.7587]
[1734878376225,6.2514,180.95,180.82,13.8254]
[1734878376409,1.03418709,180.94,180.82,13.8254]
[1734878376804,1.03418709,180.94,180.81,20.0]
[1734878377507,1.03418709,180.94,180.81,13.8261]
[1734878377736,1.03418709,180.94,180.84,20.0]
[1734878378227,1.03418709,180.94,180.77,20.0806]
[1734878378538,1.03418709,180.94,180.81,20.0]
[1734878379238,1.03418709,180.94,180.81,312.0]
[1734878379726,1.03418709,180.94,180.82,0.12549]
[1734878379932,1.03418709,180.94,180.85,20.0]
[1734878380842,6.2514,180.95,180.85,20.0]
[1734878381330,6.2514,180.95,180.88,20.0]
[1734878383537,6.2514,180.95,180.89,23.776884]
[1734878383835,6.0721,181.01,180.92,20.0]
[1734878384336,6.0721,181.01,180.96,20.0]
[1734878384507,6.0721,181.07,180.96,20.0]
[1734878386416,1.15967709,181.06,180.97,312.0]
[1734878386600,1.15967709,181.06,180.96,33.8148]
[1734878386601,1.15967709,181.06,180.96,20.0]
[1734878387133,1.15967709,181.06,180.91,20.0]
[1734878387724,1.15967709,181.06,180.89,13.8205]
[1734878387923,0.12549,181.04,180.89,13.8205]
[1734878388119,1.15967709,181.04,180.89,13.8205]
[1734878388324,0.12549,181.0,180.85,13.8232]
[1734878388526,1.15967709,181.0,180.85,13.8232]
[1734878389342,1.15967709,181.0,180.83,27.6491]
[1734878389542,1.15967709,181.0,180.83,339.6491]
[1734878390154,1.15967709,181.0,180.86,20.0]
[1734878390745,0.12549,180.96,180.74,25.2787677]
[1734878390928,1.15967709,180.96,180.77,41.4891]
[1734878391120,1.15967709,180.96,180.78,0.82920368]
[1734878391641,23.776884,180.95,180.77,13.8297]
[1734878391936,1.03418709,180.94,180.77,13.8297]
[1734878392128,0.12549,180.93,180.77,13.8297]
[1734878392841,1.03418709,180.94,180.77,13.8297]
[1734878392842,0.12549,180.91,180.77,13.8297]
[1734878393030,0.12549,180.91,180.8,20.0]
[1734878393342,0.12549,180.95,180.8,312.0]
[1734878393542,1.03418709,180.94,180.8,312.0]
[1734878394032,1.03418709,180.96,180.81,24.60612003]
[1734878394429,1.03418709,180.96,180.84,20.0]
[1734878394630,1.03418709,180.96,180.76,58.74833906]
[1734878394631,6.0721,180.97,180.89,13.8205]
[1734878395036,6.0721,180.97,180.89,20.0]
[1734878395554,6.0721,180.97,180.93,20.0]
[1734878396951,6.0721,181.05,180.93,20.0]
[1734878397142,6.0721,181.05,180.97,20.0]
[1734878397345,6.0721,181.05,181.01,20.0]
[1734878398639,6.0721,181.05,180.98,23.776884]
[1734878398640,6.0721,181.05,180.93,23.776884]
[1734878398832,1.03418709,181.04,180.89,27.6411]
[1734878399151,1.03418709,181.04,180.86,31.54]
[1734878399152,0.12549,181.03,180.87,13.822]
[1734878399525,0.12549,181.01,180.87,13.822]
[1734878399850,0.12549,180.99,180.87,13.822]
[1734878400540,0.12549,180.99,180.83,312.0]
[1734878400745,0.12549,180.99,180.84,13.8243]
[1734878401332,7.10628709,181.0,180.85,0.82909335]
[1734878401542,6.0721,181.0,180.85,0.82909335]
[1734878401747,7.10628709,181.0,180.85,0.82909335]
[1734878402052,0.12549,180.99,180.85,0.82909335]
[1734878402244,0.12549,180.97,180.84,13.8243]
[1734878402755,0.12549,180.97,180.81,13.8266]
[1734878402929,0.12549,180.93,180.81,13.8266]
[1734878403136,1.15967709,180.93,180.78,13.8289]
[1734878403452,23.776884,180.92,180.74,25.1635677]
[1734878403636,0.12549,180.89,180.76,30.0]
[1734878403840,1.15967709,180.89,180.76,30.0]
[1734878404244,1.15967709,180.89,180.75,13.8312]
[1734878404436,1.15967709,180.89,180.75,325.8312]
[1734878404641,1.15967709,180.89,180.75,13.8312]
[1734878405659,0.12549,180.87,180.72,0.6642269]
[1734878405884,0.12549,180.85,180.72,0.6642269]
[1734878406076,0.12549,180.8,180.72,0.6642269]
[1734878406234,1.15967709,180.8,180.72,0.6642269]
[1734878406460,1.03418709,180.8,180.72,0.6642269]
[1734878406856,6.4035,180.81,180.72,0.6642269]
[1734878407250,1.03418709,180.8,180.72,20.6642269]
[1734878407747,0.12549,180.79,180.72,0.6642269]
[1734878407953,1.03418709,180.8,180.72,0.6642269]
[1734878408446,6.4035,180.81,180.72,0.6642269]
[1734878409033,1.03418709,180.8,180.72,0.6642269]
[1734878409365,6.4035,180.81,180.73,13.8327]
[1734878409662,6.4035,180.81,180.76,20.0]
[1734878409864,6.4035,180.81,180.74,24.60643635]
[1734878410066,6.4035,180.89,180.78,23.776884]
[1734878410264,6.4035,180.89,180.81,20.0]
[1734878410564,6.4035,180.89,180.81,33.8265]
[1734878410775,1.03418709,180.88,180.72,0.6642269]
[1734878410937,1.03418709,180.88,180.73,43.8322]
[1734878411251,0.12549,180.87,180.72,0.6642269]
[1734878411745,0.12549,180.85,180.72,0.6642269]
[1734878412634,1.15967709,180.87,180.72,0.6642269]
[1734878412842,0.12549,180.85,180.72,0.6642269]
[1734878413039,0.12549,180.83,180.72,0.6642269]
[1734878413340,1.15967709,180.83,180.72,0.6642269]
[1734878413781,0.12549,180.81,180.72,0.6642269]
[1734878413986,1.15967709,180.81,180.72,0.6642269]
[1734878415665,13.8274,180.8,180.72,0.6642269]
[1734878415939,1.03418709,180.79,180.72,0.6642269]
[1734878416381,1.03418709,180.81,180.72,0.6642269]
[1734878416669,1.03418709,180.81,180.72,312.6642269]
[1734878417290,6.4035,180.82,180.72,312.6642269]
[1734878417657,1.03418709,180.81,180.72,312.6642269]
[1734878417856,6.4035,180.82,180.75,20.0]
[1734878418084,6.4035,180.82,180.73,13.8327]
[1734878418267,6.4035,180.82,180.76,20.0]
[1734878418466,6.4035,180.91,180.76,20.0]
[1734878418671,1.03418709,180.9,180.73,13.8327]
[1734878418873,6.4035,180.89,180.72,0.6642269]
[1734878419184,0.12549,180.85,180.72,0.6642269]
[1734878419389,9.3071,180.84,180.72,0.6642269]
[1734878419606,6.4035,180.82,180.72,0.6642269]
[1734878419886,6.4035,180.76,180.6,8.55721178]
[1734878420076,6.4035,180.72,180.6,8.55721178]
[1734878420273,23.776884,180.76,180.6,8.55721178]
[1734878420274,23.902374,180.7,180.6,8.55721178]
[1734878420465,26.52899,180.65,180.58,38.01144405]
[1734878420665,0.12549,180.63,180.58,16.88425227]
[1734878421266,0.12549,180.63,180.55,0.6642269]
[1734878421499,0.12549,180.61,180.55,0.6642269]
[1734878422170,1.03418709,180.62,180.55,0.6642269]
[1734878422484,1.03418709,180.64,180.55,0.6642269]
[1734878422690,0.12549,180.63,180.55,0.6642269]
[1734878422875,1.03418709,180.62,180.55,0.6642269]
[1734878423198,0.12549,180.61,180.55,0.6642269]
[1734878423697,0.12549,180.59,180.55,0.6642269]
[1734878423910,1.03418709,180.63,180.55,0.6642269]
[1734878424913,1.03418709,180.64,180.55,0.6642269]
[1734878426718,0.12549,180.63,180.55,0.6642269]
[1734878427005,0.12549,180.61,180.55,0.6642269]
[1734878427768,0.12549,180.64,180.55,0.6642269]
[1734878427971,0.12549,180.62,180.55,0.6642269]
[1734878428172,1.15967709,180.62,180.55,0.6642269]
[1734878428691,1.03418709,180.62,180.55,0.6642269]
[1734878428902,1.03418709,180.64,180.55,0.6642269]
[1734878429269,6.4035,180.65,180.55,0.6642269]
[1734878429493,1.03418709,180.64,180.55,34.5105269]
[1734878429665,1.03418709,180.64,180.55,0.6642269]
[1734878430678,6.4035,180.65,180.55,0.6642269]
[1734878431492,7.29958709,180.71,180.59,20.0]
[1734878431697,6.2654,180.71,180.59,20.0]
[1734878431880,6.2654,180.71,180.59,20.83012101]
[1734878432076,6.2654,180.77,180.63,20.0]
[1734878432389,1.03418709,180.76,180.63,20.0]
[1734878432694,0.12549,180.75,180.55,0.6642269]
[1734878432870,0.12549,180.73,180.58,312.0]
[1734878433067,0.12549,180.71,180.58,312.0]
[1734878433267,0.12549,180.69,180.55,0.6642269]
[1734878434467,1.15967709,180.69,180.55,0.6642269]
[1734878435388,6.2654,180.68,180.55,0.6642269]
[1734878435595,1.03418709,180.67,180.55,0.6642269]
[1734878436201,6.2654,180.68,180.59,312.0]
[1734878437280,1.15967709,180.67,180.56,13.8458]
[1734878437479,1.15967709,180.67,180.55,0.6642269]
[1734878440291,1.03418709,180.67,180.55,312.6642269]
[1734878441187,1.03418709,180.67,180.56,20.0]
[1734878441583,6.2654,180.68,180.6,20.0]
[1734878441999,6.2654,180.68,180.57,13.845]
[1734878442196,0.12549,180.66,180.55,0.6642269]
[1734878442783,0.12549,180.64,180.55,0.6642269]
[1734878443506,1.03418709,180.65,180.55,0.6642269]
[1734878443915,13.96419,180.66,180.55,0.6642269]
[1734878444080,23.902374,180.6,180.55,0.6642269]
[1734878444275,6.0997,180.61,180.5,2.25605835]
[1734878444276,23.902374,180.58,180.5,2.25605835]
[1734878444493,0.12549,180.52,180.37,0.6642269]
[1734878444695,0.12549,180.5,180.38,30.0]
[1734878444880,0.12549,180.48,180.38,30.0]
[1734878445087,0.12549,180.46,180.37,0.6642269]
[1734878445314,0.12549,180.44,180.37,0.6642269]
[1734878445483,23.776884,180.43,180.37,0.6642269]
[1734878445687,1.03418709,180.42,180.37,0.6642269]
[1734878445922,37.627284,180.5,180.37,0.6642269]